fUST/lending_fUST_20250223
["ID","MTS","AMOUNT","RATE_DAILY","PERIOD"]
[354158820,1740300635933,-187.3,0.00014273,2]
[354158821,1740300635942,-256.78,0.00014273,2]
[354158822,1740300635951,-500.0,0.00014273,2]
[354158823,1740300635962,-3103.55,0.00014273,2]
[354158824,1740300635972,-500.0,0.00014273,2]
[354158825,1740300635982,-1128.25,0.00014273,2]
[354158826,1740300635991,-5805.96,0.00014273,2]
[354158827,1740300636000,-925.85,0.00014273,2]
[354158828,1740300636010,-1714.77,0.00014273,2]
[354158829,1740300636019,-1601.25,0.00014273,2]
[354158830,1740300636030,-718.89,0.00014273,2]
[354158831,1740300636040,-682.83,0.00014273,2]
[354158832,1740300636050,-500.0,0.00014273,2]
[354158833,1740300636060,-500.0,0.00014273,2]
[354158834,1740300636071,-705.87,0.00014273,2]
[354158835,1740300636080,-500.0,0.00014356,2]
[354158836,1740300636089,-3103.55,0.00014356,2]
[354158837,1740300636099,-500.0,0.00014356,2]
[354158838,1740300636109,-1128.25,0.00014356,2]
[354158839,1740300636119,-1111.4865475,0.00014356,2]
[354158840,1740300636187,-4694.4734525,0.00014356,2]
[354158841,1740300636196,-925.85,0.00014356,2]
[354158842,1740300636206,-1714.77,0.00014356,2]
[354158843,1740300636215,-1601.25,0.00014356,2]
[354158844,1740300636225,-718.89,0.00014356,2]
[354158845,1740300636235,-682.83,0.00014356,2]
[354158846,1740300636245,-500.0,0.00014356,2]
[354158847,1740300636256,-250.1335712,0.00014356,2]
[354158855,1740300637760,-249.8664288,0.00014356,2]
[354158856,1740300637769,-705.87,0.00014356,2]
[354158857,1740300637778,-8477.64396994,0.00014437,5]
[354158858,1740300637787,-5822.19590418,0.00014438,5]
[354158865,1740300639995,-30062.9675116,0.00014438,5]
[354158866,1740300640004,-500.0,0.00014438,2]
[354158867,1740300640013,-3103.55,0.00014438,2]
[354158868,1740300640023,-636.67540401,0.00014438,2]
[354158869,1740300640033,-1128.25,0.00014438,2]
[354158870,1740300640042,-5805.96,0.00014438,2]
[354158871,1740300640051,-925.85,0.00014438,2]
[354158872,1740300640060,-1714.77,0.00014438,2]
[354158873,1740300640069,-1601.25,0.00014438,2]
[354158874,1740300640078,-718.89,0.00014438,2]
[354158875,1740300640087,-682.83,0.00014438,2]
[354158876,1740300640096,-500.0,0.00014438,2]
[354158877,1740300640105,-500.0,0.00014438,2]
[354158878,1740300640114,-705.87,0.00014438,2]
[354158879,1740300640123,-504.60634579,0.00014478,2]
[354158880,1740300640131,-1000.0,0.00014478,2]
[354158881,1740300640140,-1000.75271963,0.0001449,2]
[354158882,1740300640150,-500.0,0.0001452,2]
[354158883,1740300640158,-3103.55,0.0001452,2]
[354158884,1740300640167,-1128.25,0.0001452,2]
[354158885,1740300640177,-5805.96,0.0001452,2]
[354158886,1740300640186,-925.85,0.0001452,2]
[354158887,1740300640196,-1714.77,0.0001452,2]
[354158888,1740300640207,-1601.25,0.0001452,2]
[354158889,1740300640216,-718.89,0.0001452,2]
[354158890,1740300640225,-682.83,0.0001452,2]
[354158891,1740300640235,-594.4337145,0.0001452,2]
[354158892,1740300640244,-500.0,0.0001452,2]
[354158893,1740300640253,-705.87,0.0001452,2]
[354158894,1740300640262,-169.39098883,0.00014587,2]
[354158895,1740300640271,-500.0,0.00014602,2]
[354158896,1740300640282,-3103.55,0.00014602,2]
[354158897,1740300640292,-1128.25,0.00014602,2]
[354158898,1740300640301,-5805.96,0.00014602,2]
[354158899,1740300640310,-925.85,0.00014602,2]
[354158900,1740300640320,-1714.77,0.00014602,2]
[354158901,1740300640329,-1601.25,0.00014602,2]
[354158902,1740300640338,-718.89,0.00014602,2]
[354158903,1740300640347,-682.83,0.00014602,2]
[354158904,1740300640356,-500.0,0.00014602,2]
[354158905,1740300640366,-705.87,0.00014602,2]
[354158906,1740300640377,-12289.32552734,0.00014682,2]
[354158907,1740300640387,-500.0,0.00014684,2]
[354158908,1740300640396,-3103.55,0.00014684,2]
[354158909,1740300640406,-1128.25,0.00014684,2]
[354158910,1740300640415,-5805.96,0.00014684,2]
[354158911,1740300640424,-925.85,0.00014684,2]
[354158912,1740300640433,-1714.77,0.00014684,2]
[354158913,1740300640443,-1601.25,0.00014684,2]
[354158914,1740300640452,-718.89,0.00014684,2]
[354158915,1740300640462,-682.83,0.00014684,2]
[354158916,1740300640471,-210.73152143,0.00014684,2]
[354158917,1740300640480,-705.87,0.00014684,2]
[354158918,1740300640490,-500.0,0.00014766,2]
[354158919,1740300640499,-385.7983943,0.00014766,2]
[354158920,1740300640508,-500.0,0.00014767,2]
[354158921,1740300640517,-3103.55,0.00014767,2]
[354158922,1740300640526,-1128.25,0.00014767,2]
[354158923,1740300640535,-5805.96,0.00014767,2]
[354158924,1740300640544,-925.85,0.00014767,2]
[354158925,1740300640554,-1714.77,0.00014767,2]
[354158926,1740300640567,-1601.25,0.00014767,2]
[354158927,1740300640576,-718.89,0.00014767,2]
[354158928,1740300640586,-682.83,0.00014767,2]
[354158929,1740300640595,-705.87,0.00014767,2]
[354158930,1740300640604,-12924.89674434,0.00014797,2]
[354158931,1740300640614,-623.0,0.000148,2]
[354158932,1740300640622,-153.0,0.00014801,2]
[354158933,1740300640631,-153.0,0.00014801,2]
[354158934,1740300640640,-153.0,0.00014801,2]
[354158935,1740300640649,-153.0,0.00014801,2]
[354158936,1740300640658,-153.0,0.00014801,2]
[354158937,1740300640667,-153.0,0.00014801,2]
[354158938,1740300640676,-153.0,0.00014801,2]
[354158939,1740300640685,-153.0,0.00014801,2]
[354158940,1740300640694,-153.0,0.00014801,2]
[354158941,1740300640703,-153.0,0.00014801,2]
[354158942,1740300640712,-153.0,0.00014801,2]
[354158943,1740300640721,-153.0,0.00014801,2]
[354158944,1740300640730,-153.0,0.00014801,2]
[354158945,1740300640739,-153.0,0.00014801,2]
[354158946,1740300640748,-153.0,0.00014801,2]
[354158947,1740300640758,-153.0,0.00014801,2]
[354158948,1740300640769,-153.0,0.00014801,2]
[354158949,1740300640778,-153.0,0.00014801,2]
[354158950,1740300640787,-153.0,0.00014801,2]
[354158951,1740300640796,-153.0,0.00014801,2]
[354158952,1740300640805,-153.0,0.00014801,2]
[354158953,1740300640814,-153.0,0.00014801,2]
[354158954,1740300640823,-153.0,0.00014801,2]
[354158955,1740300640834,-153.0,0.00014801,2]
[354158956,1740300640843,-153.0,0.00014801,2]
[354158957,1740300640852,-153.0,0.00014801,2]
[354158958,1740300640862,-153.0,0.00014801,2]
[354158959,1740300640871,-153.0,0.00014801,2]
[354158960,1740300640880,-153.0,0.00014801,2]
[354158961,1740300640889,-153.0,0.00014801,2]
[354158962,1740300640898,-153.0,0.00014801,2]
[354158963,1740300640907,-153.0,0.00014801,2]
[354158964,1740300640916,-153.0,0.00014801,2]
[354158965,1740300640925,-153.0,0.00014801,2]
[354158966,1740300641015,-153.0,0.00014801,2]
[354158967,1740300641024,-153.0,0.00014801,2]
[354158968,1740300641034,-153.0,0.00014801,2]
[354158969,1740300641043,-153.0,0.00014801,2]
[354158970,1740300641052,-153.0,0.00014801,2]
[354158971,1740300641061,-153.0,0.00014801,2]
[354158972,1740300641069,-153.0,0.00014801,2]
[354158973,1740300641078,-153.0,0.00014801,2]
[354158974,1740300641087,-153.0,0.00014801,2]
[354158975,1740300641096,-153.0,0.00014801,2]
[354158976,1740300641106,-153.0,0.00014801,2]
[354158977,1740300641115,-153.0,0.00014801,2]
[354158978,1740300641123,-153.0,0.00014801,2]
[354158979,1740300641133,-153.0,0.00014801,2]
[354158980,1740300641142,-153.0,0.00014801,2]
[354158981,1740300641151,-150.347,0.0001482,2]
[354158982,1740300641160,-1975.206,0.0001482,2]
[354158983,1740300641169,-539.334,0.0001482,2]
[354158984,1740300641178,-2286.0,0.0001482,2]
[354158985,1740300641188,-396.0,0.0001482,2]
[354158986,1740300641197,-150.102,0.0001482,2]
[354158987,1740300641207,-168.75192334,0.00014822,2]
[354158988,1740300641216,-753.12622743,0.00014829,2]
[354158989,1740300641225,-500.0,0.00014849,2]
[354158990,1740300641235,-3103.55,0.00014849,2]
[354158991,1740300641244,-1128.25,0.00014849,2]
[354158992,1740300641255,-5805.96,0.00014849,2]
[354158993,1740300641263,-151.0,0.00014849,2]
[354158994,1740300641272,-151.0,0.00014849,2]
[354158995,1740300641281,-925.85,0.00014849,2]
[354158996,1740300641291,-1714.77,0.00014849,2]
[354158997,1740300641300,-1601.25,0.00014849,2]
[354158998,1740300641309,-718.89,0.00014849,2]
[354158999,1740300641318,-682.83,0.00014849,2]
[354159000,1740300641327,-705.87,0.00014849,2]
[354159001,1740300641337,-500.27923535,0.00014873,2]
[354159002,1740300641346,-151.0,0.00014873,2]
[354159003,1740300641356,-175.0624,0.00014898,2]
[354159004,1740300641365,-175.0624,0.00014898,2]
[354159005,1740300641376,-4736.96066309,0.00014898,2]
[354159006,1740300641387,-3000.0,0.00014898,2]
[354159007,1740300641399,-160.35455737,0.00014899,2]
[354159008,1740300641408,-2500.0,0.000149,2]
[354159009,1740300641417,-1628.79865643,0.000149,2]
[354159010,1740300641426,-151.0,0.000149,2]
[354159011,1740300641435,-151.0,0.000149,2]
[354159012,1740300641445,-13567.73514058,0.000149,2]
[354159309,1740301276687,266.846941,9.041e-05,2]
[354159355,1740301832028,-173.10700505,0.00013308,2]
[354159357,1740301832039,-300.0,0.00013672,2]
[354159359,1740301832048,-500.0,0.00013673,2]
[354159361,1740301832058,-500.0,0.00013673,2]
[354159363,1740301832067,-508.28951394,0.00013673,2]
[354159365,1740301832077,-500.0,0.00013673,2]
[354159367,1740301832086,-501.27417571,0.00013673,2]
[354159369,1740301832101,-500.27923535,0.00013673,2]
[354159371,1740301832111,-500.0,0.00013673,2]
[354159373,1740301832120,-500.0,0.00013673,2]
[354159375,1740301832129,-500.0,0.00013673,2]
[354159377,1740301832138,-500.0,0.00013673,2]
[354159379,1740301832147,-588.16130816,0.00013673,2]
[354159380,1740301832157,-500.0,0.00013673,2]
[354159382,1740301832167,-279.99377584,0.00013673,2]
[354159384,1740301832176,-517.12891589,0.00013673,2]
[354159386,1740301832185,-500.0,0.00013673,2]
[354159388,1740301832195,-502.16312422,0.00013673,2]
[354159390,1740301832204,-500.0,0.00013697,2]
[354159392,1740301832213,-500.0,0.00013697,2]
[354159395,1740301832224,-500.0,0.00013697,2]
[354159396,1740301832233,-500.0,0.00013697,2]
[354159399,1740301832243,-500.0,0.00013697,2]
[354159401,1740301832252,-350.75746811,0.00013697,2]
[354159402,1740301832261,-462.77324137,0.00013697,2]
[354159405,1740301832273,-37.22675863,0.00013697,2]
[354159407,1740301832282,-411.23691898,0.00013697,2]
[354159409,1740301832294,-88.76308102,0.00013697,2]
[354159411,1740301832302,-215.10411363,0.00013697,2]
[354159413,1740301832312,-500.0,0.00013697,2]
[354159414,1740301832321,-500.0,0.00013697,2]
[354159416,1740301832330,-500.0,0.00013697,2]
[354159418,1740301832339,-500.0,0.00013697,2]
[354159420,1740301832348,-413.42544627,0.00013697,2]
[354159422,1740301832358,-353.52973595,0.00013697,2]
[354159424,1740301832368,-500.0,0.00013697,2]
[354159426,1740301832377,-500.0,0.00013697,2]
[354159427,1740301832386,-500.0,0.00013697,2]
[354159429,1740301832395,-500.0,0.00013697,2]
[354159430,1740301832404,-500.0,0.00013697,2]
[354159431,1740301832414,-500.0,0.00013697,2]
[354159432,1740301832423,-500.0,0.00013697,2]
[354159433,1740301832433,-500.0,0.00013697,2]
[354159434,1740301832442,-500.0,0.00013697,2]
[354159435,1740301832451,-500.0,0.00013697,2]
[354159436,1740301832461,-500.0,0.00013697,2]
[354159437,1740301832470,-500.0,0.00013697,2]
[354159438,1740301832479,-152.69036246,0.00013697,2]
[354159439,1740301832488,-500.0,0.00013697,2]
[354159440,1740301832497,-500.0,0.00013697,2]
[354159441,1740301832507,-500.0,0.00013697,2]
[354159442,1740301832516,-500.0,0.00013697,2]
[354159443,1740301832525,-500.0,0.00013697,2]
[354159444,1740301832534,-500.0,0.00013697,2]
[354159445,1740301832543,-500.0,0.00013697,2]
[354159446,1740301832552,-500.0,0.00013697,2]
[354159447,1740301832561,-500.0,0.00013697,2]
[354159448,1740301832570,-500.0,0.00013697,2]
[354159449,1740301832579,-500.0,0.00013697,2]
[354159450,1740301832588,-500.0,0.00013697,2]
[354159451,1740301832597,-276.48726067,0.00013697,2]
[354159460,1740301837852,-81.78357633,0.00013697,2]
[354159461,1740301837862,-500.0,0.00013697,2]
[354159462,1740301837871,-500.0,0.00013697,2]
[354159463,1740301837881,-500.0,0.00013697,2]
[354159464,1740301837890,-500.0,0.00013697,2]
[354159465,1740301837900,-500.0,0.00013697,2]
[354159466,1740301837909,-500.0,0.00013697,2]
[354159467,1740301837919,-500.0,0.00013697,2]
[354159468,1740301837928,-500.0,0.00013697,2]
[354159469,1740301837938,-500.0,0.00013697,2]
[354159470,1740301837948,-500.0,0.00013698,2]
[354159471,1740301837957,-500.0,0.00013698,2]
[354159472,1740301837966,-504.41319185,0.00013698,2]
[354159473,1740301837975,-500.0,0.00013698,2]
[354159474,1740301837985,-502.33232697,0.00013698,2]
[354159475,1740301837994,-505.16043065,0.00013698,2]
[354159476,1740301838003,-500.0,0.00013698,2]
[354159477,1740301838013,-500.0,0.00013698,2]
[354159478,1740301838022,-500.0,0.00013698,2]
[354159479,1740301838031,-500.0,0.00013698,2]
[354159480,1740301838041,-500.0,0.00013698,2]
[354159481,1740301838050,-305.12475772,0.00013698,2]
[354159482,1740301838059,-420.27762552,0.00013698,2]
[354159483,1740301838070,-500.0,0.00013698,2]
[354159484,1740301838079,-500.0,0.00013698,2]
[354159485,1740301838088,-500.0,0.00013698,2]
[354159486,1740301838102,-500.0,0.00013698,2]
[354159487,1740301838111,-500.0,0.00013698,2]
[354159488,1740301838120,-500.0,0.00013698,2]
[354159489,1740301838129,-500.0,0.00013698,2]
[354159490,1740301838242,-500.0,0.00013698,2]
[354159491,1740301838252,-500.0,0.00013698,2]
[354159492,1740301838261,-500.0,0.00013698,2]
[354159493,1740301838271,-500.0,0.00013698,2]
[354159494,1740301838281,-500.0,0.00013698,2]
[354159495,1740301838290,-500.0,0.00013698,2]
[354159496,1740301838300,-500.0,0.00013698,2]
[354159497,1740301838309,-500.0,0.00013698,2]
[354159498,1740301838320,-500.0,0.00013698,2]
[354159499,1740301838330,-500.0,0.00013698,2]
[354159500,1740301838340,-705.15,0.00013698,2]
[354159501,1740301838350,-504.9690969,0.00013698,2]
[354159502,1740301838359,-445.68690983,0.00013698,2]
[354159503,1740301838369,-501.52709678,0.00013698,2]
[354159504,1740301838379,-500.0,0.00013698,2]
[354159505,1740301838388,-500.0,0.00013698,2]
[354159506,1740301838397,-503.846676,0.00013698,2]
[354159507,1740301838407,-500.0,0.00013698,2]
[354159508,1740301838417,-500.0,0.00013698,2]
[354159509,1740301838426,-501.65499714,0.00013698,2]
[354159510,1740301838437,-500.0,0.00013698,2]
[354159511,1740301838446,-500.0,0.00013698,2]
[354159512,1740301838456,-500.0,0.00013698,2]
[354159513,1740301838466,-511.21917808,0.00013698,2]
[354159514,1740301838477,-508.87527991,0.00013698,2]
[354159515,1740301838486,-506.95099284,0.00013698,2]
[354159516,1740301838496,-505.67643483,0.00013698,2]
[354159517,1740301838507,-503.79105076,0.00013698,2]
[354159518,1740301838517,-502.49019953,0.00013698,2]
[354159519,1740301838527,-503.00178069,0.00013698,2]
[354159520,1740301838536,-500.0,0.00013698,2]
[354159521,1740301838546,-500.0,0.00013698,2]
[354159522,1740301838556,-500.0,0.00013698,2]
[354159523,1740301838566,-500.0,0.00013698,2]
[354159524,1740301838575,-500.0,0.00013698,2]
[354159525,1740301838585,-502.00897485,0.00013698,2]
[354159526,1740301838594,-500.0,0.00013698,2]
[354159527,1740301838604,-502.74222771,0.00013698,2]
[354159528,1740301838614,-503.10042185,0.00013698,2]
[354159529,1740301838623,-500.0,0.00013698,2]
[354159530,1740301838632,-500.0,0.00013698,2]
[354159531,1740301838642,-501.93368207,0.00013698,2]
[354159532,1740301838651,-500.0,0.00013698,2]
[354159533,1740301838661,-627.41118416,0.00013698,2]
[354159534,1740301838671,-500.0,0.00013698,2]
[354159535,1740301838680,-500.0,0.00013698,2]
[354159536,1740301838690,-506.30303285,0.00013698,2]
[354159537,1740301838699,-1398.29,0.00013698,2]
[354159538,1740301838708,-247.49734324,0.00013698,2]
[354159539,1740301838718,-500.0,0.00013698,2]
[354159540,1740301838728,-500.0,0.00013698,2]
[354159541,1740301838737,-500.0,0.00013698,2]
[354159542,1740301838747,-502.60213939,0.00013698,2]
[354159543,1740301838756,-345.05095398,0.00013698,2]
[354159544,1740301838766,-500.0,0.00013698,2]
[354159545,1740301838775,-500.0,0.00013698,2]
[354159546,1740301838784,-500.0,0.00013698,2]
[354159547,1740301838794,-500.0,0.00013698,2]
[354159548,1740301838803,-500.0,0.00013698,2]
[354159549,1740301838812,-500.0,0.00013698,2]
[354159550,1740301838822,-501.54687498,0.00013698,2]
[354159551,1740301838832,-500.0,0.00013698,2]
[354159552,1740301838841,-514.04511666,0.00013698,2]
[354159553,1740301838850,-500.0,0.00013698,2]
[354159554,1740301838860,-500.0,0.00013698,2]
[354159555,1740301838870,-500.0,0.00013698,2]
[354159556,1740301838879,-501.03479758,0.00013698,2]
[354159557,1740301838889,-500.0,0.00013698,2]
[354159558,1740301838898,-500.0,0.00013698,2]
[354159559,1740301838907,-500.0,0.00013698,2]
[354159560,1740301838916,-500.0,0.00013698,2]
[354159561,1740301838925,-500.0,0.00013698,2]
[354159562,1740301838935,-500.0,0.00013698,2]
[354159563,1740301838943,-500.0,0.00013698,2]
[354159564,1740301838952,-500.0,0.00013698,2]
[354159565,1740301838962,-500.0,0.00013698,2]
[354159566,1740301838978,-500.0,0.00013698,2]
[354159567,1740301838987,-500.0,0.00013698,2]
[354159568,1740301838997,-501.63937723,0.00013698,2]
[354159569,1740301839006,-813.1,0.00013698,2]
[354159570,1740301839015,-500.0,0.00013698,2]
[354159571,1740301839025,-500.0,0.00013698,2]
[354159572,1740301839035,-500.0,0.00013698,2]
[354159573,1740301839044,-500.0,0.00013698,2]
[354159574,1740301839054,-500.74471077,0.00013698,2]
[354159575,1740301839063,-500.0,0.00013698,2]
[354159576,1740301839073,-500.0,0.00013698,2]
[354159577,1740301839082,-500.0,0.00013698,2]
[354159578,1740301839095,-500.0,0.00013698,2]
[354159579,1740301839105,-500.0,0.00013698,2]
[354159580,1740301839115,-500.0,0.00013698,2]
[354159581,1740301839124,-501.10617869,0.00013698,2]
[354159582,1740301839134,-500.0,0.00013698,2]
[354159583,1740301839143,-503.19530357,0.00013698,2]
[354159584,1740301839152,-500.50645448,0.00013698,2]
[354159585,1740301839162,-500.0,0.00013698,2]
[354159586,1740301839175,-500.90308038,0.00013698,2]
[354159587,1740301839184,-501.35923253,0.00013698,2]
[354159588,1740301839194,-500.0,0.00013698,2]
[354159589,1740301839203,-500.0,0.00013698,2]
[354159590,1740301839213,-500.0,0.00013698,2]
[354159591,1740301839224,-500.59222718,0.00013698,2]
[354159592,1740301839234,-4432.49,0.00013698,2]
[354159593,1740301839243,-500.0,0.00013698,2]
[354159594,1740301839253,-500.0,0.00013698,2]
[354159595,1740301839263,-597.46209863,0.00013698,2]
[354159596,1740301839272,-501.93919288,0.00013698,2]
[354159597,1740301839282,-500.0,0.00013698,2]
[354159598,1740301839291,-501.9233025,0.00013698,2]
[354159599,1740301839301,-500.0,0.00013698,2]
[354159600,1740301839311,-500.0,0.00013698,2]
[354159601,1740301839320,-500.0,0.00013698,2]
[354159602,1740301839330,-505.7,0.00013698,2]
[354159603,1740301839340,-1623.47,0.00013698,2]
[354159604,1740301839350,-309.34917873,0.00013698,2]
[354159605,1740301839360,-501.43120417,0.00013698,2]
[354159606,1740301839369,-500.0,0.00013698,2]
[354159607,1740301839378,-500.0,0.00013698,2]
[354159608,1740301839387,-500.0,0.00013698,2]
[354159609,1740301839397,-500.0,0.00013698,2]
[354159610,1740301839406,-500.0,0.00013698,2]
[354159611,1740301839415,-495.4709574,0.00013698,2]
[354159612,1740301839424,-504.65553671,0.00013698,2]
[354159613,1740301839434,-500.0,0.00013698,2]
[354159614,1740301839443,-500.0,0.00013698,2]
[354159615,1740301839453,-282.03490207,0.00013698,2]
[354159616,1740301839462,-500.0,0.00013698,2]
[354159617,1740301839471,-505.39823762,0.00013698,2]
[354159618,1740301839481,-500.0,0.00013698,2]
[354159619,1740301839489,-8302.59,0.00013698,2]
[354159620,1740301839498,-500.0,0.00013698,2]
[354159621,1740301839507,-500.0,0.00013698,2]
[354159622,1740301839516,-3032.66,0.00013698,2]
[354159623,1740301839527,-500.0,0.00013698,2]
[354159624,1740301839536,-500.0,0.00013698,2]
[354159625,1740301839547,-944.55,0.00013698,2]
[354159626,1740301839557,-500.0,0.00013698,2]
[354159627,1740301839566,-2235.93,0.00013698,2]
[354159628,1740301839575,-500.0,0.00013698,2]
[354159629,1740301839586,-500.0,0.00013698,2]
[354159630,1740301839596,-500.0,0.00013698,2]
[354159631,1740301839605,-500.0,0.00013698,2]
[354159632,1740301839615,-993.87,0.00013698,2]
[354159633,1740301839626,-500.0,0.00013698,2]
[354159634,1740301839637,-500.0,0.00013698,2]
[354159635,1740301839647,-300.37751837,0.00013698,2]
[354159636,1740301839656,-593.61,0.00013698,2]
[354159637,1740301839666,-500.0,0.00013698,2]
[354159638,1740301839675,-500.0,0.00013698,2]
[354159639,1740301839684,-637.960912,0.00013699,2]
[354159640,1740301839693,-161.482048,0.00013699,2]
[354159641,1740301839703,-285.02540247,0.00013699,2]
[354159642,1740301839712,-500.0,0.00013699,2]
[354159643,1740301839721,-500.0,0.00013699,2]
[354159645,1740301839731,-500.0,0.00013699,2]
[354159646,1740301839739,-275.71277995,0.00013699,2]
[354159647,1740301839749,-500.0,0.0001378,2]
[354159648,1740301839758,-500.0,0.0001378,2]
[354159649,1740301839767,-500.0,0.0001378,2]
[354159650,1740301839776,-500.0,0.0001378,2]
[354159651,1740301839785,-500.0,0.0001378,2]
[354159652,1740301839794,-547.31634246,0.0001378,2]
[354159653,1740301839803,-500.0,0.0001378,2]
[354159654,1740301839812,-500.0,0.0001378,2]
[354159655,1740301839822,-500.0,0.0001378,2]
[354159656,1740301839832,-500.0,0.0001378,2]
[354159658,1740301839841,-500.0,0.0001378,2]
[354159660,1740301839850,-500.0,0.0001378,2]
[354159662,1740301839860,-500.0,0.0001378,2]
[354159663,1740301839870,-500.0,0.0001378,2]
[354159664,1740301839879,-500.0,0.0001378,2]
[354159666,1740301839889,-500.0,0.0001378,2]
[354159667,1740301839899,-500.0,0.0001378,2]
[354159668,1740301839909,-500.0,0.0001378,2]
[354159669,1740301839918,-705.15,0.0001378,2]
[354159670,1740301839927,-500.0,0.0001378,2]
[354159671,1740301839936,-439.94796735,0.0001378,2]
[354159673,1740301839945,-500.0,0.0001378,2]
[354159674,1740301839954,-268.90884737,0.0001378,2]
[354159675,1740301839963,-500.0,0.0001378,2]
[354159676,1740301839973,-500.0,0.0001378,2]
[354159677,1740301839982,-500.0,0.0001378,2]
[354159678,1740301839992,-500.0,0.0001378,2]
[354159679,1740301840002,-500.0,0.0001378,2]
[354159680,1740301840011,-500.0,0.0001378,2]
[354159681,1740301840020,-503.7363813,0.0001378,2]
[354159682,1740301840030,-500.0,0.0001378,2]
[354159683,1740301840039,-1398.29,0.0001378,2]
[354159684,1740301840048,-500.0,0.0001378,2]
[354159686,1740301840058,-505.2967806,0.0001378,2]
[354159688,1740301840067,-509.0314645,0.0001378,2]
[354159689,1740301840077,-510.83285161,0.0001378,2]
[354159690,1740301840086,-500.0,0.0001378,2]
[354159691,1740301840098,-500.0,0.0001378,2]
[354159692,1740301840107,-500.0,0.0001378,2]
[354159693,1740301840117,-504.72208563,0.0001378,2]
[354159694,1740301840127,-500.0,0.0001378,2]
[354159695,1740301840136,-500.0,0.0001378,2]
[354159696,1740301840146,-500.0,0.0001378,2]
[354159697,1740301840156,-500.0,0.0001378,2]
[354159698,1740301840165,-500.0,0.0001378,2]
[354159699,1740301840174,-528.37286133,0.0001378,2]
[354159700,1740301840184,-648.21518709,0.0001378,2]
[354159701,1740301840195,-500.0,0.0001378,2]
[354159702,1740301840205,-500.0,0.0001378,2]
[354159704,1740301840214,-500.0,0.0001378,2]
[354159705,1740301840223,-500.0,0.0001378,2]
[354159707,1740301840232,-813.1,0.0001378,2]
[354159709,1740301840241,-500.0,0.0001378,2]
[354159711,1740301840251,-500.0,0.0001378,2]
[354159712,1740301840261,-502.28225715,0.0001378,2]
[354159713,1740301840270,-512.34563179,0.0001378,2]
[354159714,1740301840279,-503.77978048,0.0001378,2]
[354159715,1740301840288,-500.0,0.0001378,2]
[354159716,1740301840298,-500.0,0.0001378,2]
[354159717,1740301840307,-500.0,0.0001378,2]
[354159718,1740301840316,-500.0,0.0001378,2]
[354159719,1740301840326,-500.0,0.0001378,2]
[354159720,1740301840335,-500.0,0.0001378,2]
[354159721,1740301840344,-500.0,0.0001378,2]
[354159722,1740301840354,-4432.49,0.0001378,2]
[354159723,1740301840363,-500.0,0.0001378,2]
[354159724,1740301840372,-500.0,0.0001378,2]
[354159725,1740301840381,-505.7,0.0001378,2]
[354159726,1740301840391,-1623.47,0.0001378,2]
[354159727,1740301840401,-500.0,0.0001378,2]
[354159728,1740301840410,-514.31133253,0.0001378,2]
[354159729,1740301840420,-500.0,0.0001378,2]